fUST/lending_fUST_20240723
["ID","MTS","AMOUNT","RATE_DAILY","PERIOD"]
[332924127,1721680271388,-439.74,0.00016438,2]
[332924128,1721680271398,-500.0,0.00016438,2]
[332924129,1721680271407,-1214.04,0.00016438,2]
[332924130,1721680271417,-900.64,0.00016438,2]
[332924131,1721680271427,-600.28,0.00016438,2]
[332924132,1721680271436,-1219.66,0.00016438,2]
[332924133,1721680271446,-500.0,0.00016438,2]
[332924134,1721680271455,-1201.16,0.00016438,2]
[332924135,1721680271464,-500.0,0.00016438,2]
[332924136,1721680271473,-500.0,0.00016438,2]
[332924137,1721680271483,-646.82,0.00016438,2]
[332924138,1721680271492,-500.0,0.00016438,2]
[332924139,1721680271501,-500.0,0.00016438,2]
[332924140,1721680271510,-500.0,0.00016438,2]
[332924141,1721680271519,-500.0,0.00016438,2]
[332924142,1721680271528,-500.0,0.00016438,2]
[332924143,1721680271537,-888.44,0.00016438,2]
[332924144,1721680271546,-500.0,0.00016438,2]
[332924145,1721680271555,-153.96737118,0.00016438,2]
[332924146,1721680271564,-462.73749497,0.00016438,2]
[332924180,1721681226102,-250.0,8.552e-05,2]
[332924181,1721681226125,-250.0,9.323e-05,2]
[332924182,1721681226149,-250.0,9.348e-05,2]
[332924183,1721681226175,-250.0,9.374e-05,2]
[332924184,1721681226203,-250.0,9.399e-05,2]
[332924185,1721681226228,-250.0,9.425e-05,2]
[332924186,1721681226253,-250.0,9.451e-05,2]
[332924187,1721681226276,-250.0,9.476e-05,2]
[332924188,1721681226298,-250.0,9.502e-05,2]
[332924189,1721681226320,-250.0,9.527e-05,2]
[332924190,1721681226341,-250.0,9.553e-05,2]
[332924191,1721681226364,-250.0,9.578e-05,2]
[332924192,1721681226387,-250.0,9.604e-05,2]
[332924193,1721681226410,-250.0,9.629e-05,2]
[332924194,1721681226432,-250.0,9.655e-05,2]
[332924195,1721681226455,-250.0,9.681e-05,2]
[332924196,1721681226478,-250.0,9.706e-05,2]
[332924197,1721681226504,-250.0,9.732e-05,2]
[332924198,1721681226526,-250.0,9.757e-05,2]
[332924199,1721681226550,-250.0,9.783e-05,2]
[332924200,1721681226572,-273.37336231,9.796e-05,2]
[332924201,1721681226595,-250.0,9.808e-05,2]
[332924202,1721681226616,-394.7073879,9.895e-05,2]
[332924203,1721681226640,-300.0,9.998e-05,2]
[332924204,1721681226664,-180.0,9.998e-05,2]
[332924205,1721681226685,-156.43671221,9.999e-05,2]
[332924206,1721681226707,-531.29167136,9.999e-05,2]
[332924207,1721681226727,-726.7153245,9.999e-05,2]
[332924208,1721681226753,-154.71377951,9.999e-05,2]
[332924209,1721681226775,-154.71377951,9.999e-05,2]
[332924210,1721681226797,-403.29212142,9.999e-05,2]
[332924211,1721681226819,-209.63850314,9.999e-05,2]
[332924212,1721681226841,-778.4967709,9.999e-05,2]
[332924213,1721681226863,-567.94371923,9.999e-05,2]
[332924214,1721681226885,-248.81385722,9.999e-05,2]
[332924215,1721681226907,-156.56045866,9.999e-05,2]
[332924216,1721681226928,-266.82691479,9.999e-05,2]
[332924217,1721681226950,-154.71377951,9.999e-05,2]
[332924218,1721681226972,-519.01388481,9.999e-05,2]
[332924219,1721681226999,-154.71377951,9.999e-05,2]
[332924220,1721681227019,-663.51231387,9.999e-05,2]
[332924221,1721681227051,-154.71377951,9.999e-05,2]
[332924222,1721681227081,-1023.91155908,9.999e-05,2]
[332924223,1721681227114,-154.71377951,9.999e-05,2]
[332924224,1721681227145,-848.46107157,9.999e-05,2]
[332924225,1721681227176,-341.66678597,9.999e-05,2]
[332924226,1721681227208,-154.71377951,9.999e-05,2]
[332924227,1721681227243,-154.71377951,9.999e-05,2]
[332924228,1721681227274,-154.71377951,9.999e-05,2]
[332924229,1721681227301,-154.71377951,9.999e-05,2]
[332924230,1721681227330,-346.24214689,9.999e-05,2]
[332924231,1721681227361,-193.54052584,9.999e-05,2]
[332924232,1721681227392,-319.37459379,9.999e-05,2]
[332924233,1721681227417,-157.2157552,9.999e-05,2]
[332924234,1721681227444,-459.13593927,9.999e-05,2]
[332924235,1721681227477,-208.54118651,9.999e-05,2]
[332924236,1721681227510,-188.02900327,9.999e-05,2]
[332924237,1721681227539,-404.3074502,9.999e-05,2]
[332924238,1721681227566,-154.71377951,9.999e-05,2]
[332924239,1721681227592,-154.71377951,9.999e-05,2]
[332924240,1721681227621,-154.71377951,0.0001,2]
[332924241,1721681227648,-994.32496375,0.0001,2]
[332924242,1721681227675,-186.85776611,0.0001,2]
[332924243,1721681227701,-287.45478261,0.0001,2]
[332924244,1721681227728,-24900.0,0.00010016,2]
[332924245,1721681227757,-420.0,0.00010998,2]
[332924246,1721681227787,-3359.62228769,0.000129,2]
[332924247,1721681227813,-3359.62228768,0.000129,2]
[332924248,1721681227840,-200.0,0.00013425,2]
[332924249,1721681227871,-2000.0,0.00013588,2]
[332924250,1721681227901,-1000.0,0.00013598,2]
[332924251,1721681227931,-14913.7508148,0.00013688,2]
[332924252,1721681228030,-16757.0598,0.00013688,2]
[332924254,1721681350092,-154.71377951,9.999e-05,2]
[332924255,1721681354465,154.71377951,9.999e-05,2]
[332924256,1721681374132,-2000.0,0.00013588,2]
[332924257,1721681374153,-2215.22078469,0.00013688,2]
[332924258,1721681374179,-17904.12889241,0.00013688,2]
[332924259,1721681374200,-164.49158165,0.00013688,2]
[332924260,1721681374223,-2062.92871729,0.00013688,2]
[332924273,1721681432165,-24900.0,0.00012842,2]
[332924274,1721681432174,-2519.71671576,0.00013588,2]
[332924275,1721681432186,-59087.02412496,0.00013688,2]
[332924312,1721681438191,-1109.081745,0.00013688,2]
[332924324,1721681438346,-20763.54367359,0.00013688,2]
[332924327,1721681438357,-471.69059068,0.00013688,2]
[332924329,1721681438373,-112028.90916177,0.00013688,2]
[332924331,1721681438382,-154.71377951,0.00013688,2]
[332924333,1721681438391,-366407.565903,0.00013688,2]
[332924335,1721681438401,-740.31,0.00013698,2]
[332924337,1721681438410,-500.0,0.00013698,2]
[332924339,1721681438420,-500.0,0.00013698,2]
[332924341,1721681438429,-500.0,0.00013698,2]
[332924343,1721681438439,-500.0,0.00013698,2]
[332924346,1721681438448,-500.0,0.00013698,2]
[332924348,1721681438457,-503.3907054,0.00013698,2]
[332924350,1721681438466,-941.88,0.00013698,2]
[332924351,1721681438476,-500.0,0.00013698,2]
[332924353,1721681438485,-500.0,0.00013698,2]
[332924355,1721681438496,-500.0,0.00013698,2]
[332924356,1721681438505,-226.4877244,0.00013698,2]
[332924357,1721681438514,-1442.48,0.00013698,2]
[332924358,1721681438524,-500.0,0.00013698,2]
[332924359,1721681438533,-500.0,0.00013698,2]
[332924360,1721681438543,-500.0,0.00013698,2]
[332924361,1721681438552,-500.0,0.00013698,2]
[332924362,1721681438561,-500.0,0.00013698,2]
[332924363,1721681438571,-500.0,0.00013698,2]
[332924364,1721681438580,-500.0,0.00013698,2]
[332924365,1721681438590,-500.0,0.00013698,2]
[332924366,1721681438599,-500.0,0.00013698,2]
[332924367,1721681438609,-500.0,0.00013698,2]
[332924369,1721681438618,-500.0,0.00013698,2]
[332924371,1721681438627,-500.0,0.00013698,2]
[332924373,1721681438637,-500.0,0.00013698,2]
[332924375,1721681438646,-500.0,0.00013698,2]
[332924377,1721681438655,-500.0,0.00013698,2]
[332924379,1721681438665,-510.81,0.00013698,2]
[332924381,1721681438677,-500.0,0.00013698,2]
[332924383,1721681438689,-500.0,0.00013698,2]
[332924384,1721681438698,-500.0,0.00013698,2]
[332924387,1721681438710,-500.0,0.00013698,2]
[332924389,1721681438719,-500.0,0.00013698,2]
[332924390,1721681438728,-500.0,0.00013698,2]
[332924392,1721681438736,-500.0,0.00013698,2]
[332924394,1721681438746,-500.0,0.00013698,2]
[332924396,1721681438755,-500.0,0.00013698,2]
[332924398,1721681438764,-500.0,0.00013698,2]
[332924400,1721681438773,-500.0,0.00013698,2]
[332924402,1721681438782,-2358.94,0.00013698,2]
[332924404,1721681438792,-500.0,0.00013698,2]
[332924406,1721681438801,-500.0,0.00013698,2]
[332924408,1721681438810,-221.27134037,0.00013698,2]
[332924410,1721681438820,-500.0,0.00013698,2]
[332924412,1721681438829,-500.0,0.00013698,2]
[332924414,1721681438838,-500.0,0.00013698,2]
[332924417,1721681438849,-500.0,0.00013698,2]
[332924419,1721681438859,-277.36100897,0.00013698,2]
[332924420,1721681438869,-667.65,0.00013698,2]
[332924421,1721681438879,-594.58,0.00013698,2]
[332924422,1721681438888,-500.0,0.00013698,2]
[332924423,1721681438898,-500.0,0.00013698,2]
[332924424,1721681438907,-500.0,0.00013698,2]
[332924425,1721681438919,-500.0,0.00013698,2]
[332924426,1721681438928,-500.0,0.00013698,2]
[332924427,1721681438938,-500.0,0.00013698,2]
[332924428,1721681438947,-500.0,0.00013698,2]
[332924429,1721681438957,-500.0,0.00013698,2]
[332924430,1721681438966,-500.0,0.00013698,2]
[332924431,1721681438975,-500.0,0.00013698,2]
[332924432,1721681438984,-500.0,0.00013698,2]
[332924433,1721681438994,-500.0,0.00013698,2]
[332924434,1721681439003,-524.14,0.00013698,2]
[332924435,1721681439012,-500.0,0.00013698,2]
[332924436,1721681439021,-500.0,0.00013698,2]
[332924437,1721681439031,-500.0,0.00013698,2]
[332924438,1721681439040,-500.0,0.00013698,2]
[332924439,1721681439049,-500.0,0.00013698,2]
[332924440,1721681439058,-500.0,0.00013698,2]
[332924441,1721681439068,-500.0,0.00013698,2]
[332924442,1721681439077,-500.0,0.00013698,2]
[332924443,1721681439086,-500.0,0.00013698,2]
[332924444,1721681439095,-500.0,0.00013698,2]
[332924445,1721681439105,-623.336868,0.00013698,2]
[332924446,1721681439114,-615.18,0.00013698,2]
[332924447,1721681439123,-2089.36,0.00013698,2]
[332924448,1721681439132,-500.0,0.00013698,2]
[332924449,1721681439142,-500.0,0.00013698,2]
[332924450,1721681439152,-652.17,0.00013698,2]
[332924451,1721681439162,-500.0,0.00013698,2]
[332924452,1721681439172,-500.0,0.00013698,2]
[332924453,1721681439182,-500.0,0.00013698,2]
[332924454,1721681439194,-500.0,0.00013698,2]
[332924455,1721681439204,-502.56,0.00013698,2]
[332924456,1721681439213,-500.0,0.00013698,2]
[332924457,1721681439223,-1234.39,0.00013698,2]
[332924458,1721681439233,-500.0,0.00013698,2]
[332924459,1721681439242,-500.0,0.00013698,2]
[332924460,1721681439252,-500.0,0.00013698,2]
[332924461,1721681439263,-521.87931672,0.00013698,2]
[332924462,1721681439274,-500.0,0.00013698,2]
[332924463,1721681439283,-500.0,0.00013698,2]
[332924464,1721681439293,-600.8,0.00013698,2]
[332924465,1721681439303,-784.16,0.00013698,2]
[332924466,1721681439312,-500.0,0.00013698,2]
[332924467,1721681439322,-570.88,0.00013698,2]
[332924468,1721681439331,-500.0,0.00013698,2]
[332924469,1721681439341,-500.0,0.00013698,2]
[332924470,1721681439350,-500.0,0.00013698,2]
[332924471,1721681439360,-500.0,0.00013698,2]
[332924472,1721681439369,-500.0,0.00013698,2]
[332924473,1721681439379,-500.0,0.00013698,2]
[332924474,1721681439388,-3662.92,0.00013698,2]
[332924475,1721681439398,-500.0,0.00013698,2]
[332924476,1721681439407,-500.0,0.00013698,2]
[332924477,1721681439419,-500.0,0.00013698,2]
[332924478,1721681439428,-500.0,0.00013698,2]
[332924479,1721681439438,-962.14,0.00013698,2]
[332924480,1721681439448,-408.58977275,0.00013698,2]
[332924481,1721681439457,-500.0,0.00013698,2]
[332924482,1721681439467,-500.0,0.00013698,2]
[332924483,1721681439476,-500.0,0.00013698,2]
[332924484,1721681439485,-500.0,0.00013698,2]
[332924485,1721681439494,-500.0,0.00013698,2]
[332924486,1721681439504,-978.53,0.00013698,2]
[332924487,1721681439513,-500.0,0.00013698,2]
[332924488,1721681439523,-500.0,0.00013698,2]
[332924489,1721681439534,-696.68,0.00013698,2]
[332924490,1721681439544,-500.0,0.00013698,2]
[332924491,1721681439553,-500.0,0.00013698,2]
[332924492,1721681439563,-1096.52,0.00013698,2]
[332924493,1721681439572,-500.0,0.00013698,2]
[332924494,1721681439582,-500.0,0.00013698,2]
[332924495,1721681439591,-500.0,0.00013698,2]
[332924496,1721681439601,-500.0,0.00013698,2]
[332924497,1721681439611,-500.0,0.00013698,2]
[332924499,1721681439620,-500.0,0.00013698,2]
[332924500,1721681439629,-595.10420466,0.00013698,2]
[332924501,1721681439639,-500.0,0.00013698,2]
[332924502,1721681439649,-502.16761621,0.00013698,2]
[332924503,1721681439659,-500.0,0.00013698,2]
[332924504,1721681439669,-500.0,0.00013698,2]
[332924506,1721681439678,-480.60428046,0.00013698,2]
[332924508,1721681439688,-637.7,0.00013698,2]
[332924509,1721681439698,-500.0,0.00013698,2]
[332924510,1721681439707,-500.0,0.00013698,2]
[332924511,1721681439716,-500.0,0.00013698,2]
[332924512,1721681439726,-500.0,0.00013698,2]
[332924513,1721681439735,-500.0,0.00013698,2]
[332924514,1721681439744,-502.35351957,0.00013698,2]
[332924515,1721681439754,-500.0,0.00013698,2]
[332924516,1721681439763,-500.0,0.00013698,2]
[332924517,1721681439773,-3696.5,0.00013698,2]
[332924518,1721681439782,-3696.5,0.00013698,2]
[332924519,1721681439791,-3696.5,0.00013698,2]
[332924520,1721681439799,-3696.5,0.00013698,2]
[332924521,1721681439809,-500.0,0.00013698,2]
[332924522,1721681439818,-3696.5,0.00013698,2]
[332924523,1721681439827,-3696.5,0.00013698,2]
[332924524,1721681439836,-500.0,0.00013698,2]
[332924525,1721681439845,-3696.5,0.00013698,2]
[332924526,1721681439855,-3696.5,0.00013698,2]
[332924527,1721681439864,-3696.5,0.00013698,2]
[332924528,1721681439873,-3696.5,0.00013698,2]
[332924529,1721681439882,-3696.5,0.00013698,2]
[332924530,1721681439891,-3696.5,0.00013698,2]
[332924531,1721681439901,-500.0,0.00013698,2]
[332924532,1721681439911,-3696.5,0.00013698,2]
[332924533,1721681439921,-3696.5,0.00013698,2]
[332924534,1721681439930,-3696.5,0.00013698,2]
[332924535,1721681439940,-3696.5,0.00013698,2]
[332924536,1721681439950,-3696.5,0.00013698,2]
[332924537,1721681439959,-3696.5,0.00013698,2]
[332924538,1721681439969,-3696.5,0.00013698,2]
[332924539,1721681439978,-500.0,0.00013698,2]
[332924540,1721681439987,-3696.5,0.00013698,2]
[332924541,1721681439996,-3696.5,0.00013698,2]
[332924542,1721681440006,-3696.5,0.00013698,2]
[332924543,1721681440016,-3696.5,0.00013698,2]
[332924544,1721681440025,-3696.69838006,0.00013698,2]
[332924545,1721681440034,-500.0,0.00013698,2]
[332924546,1721681440043,-500.0,0.00013698,2]
[332924547,1721681440052,-500.0,0.00013698,2]
[332924548,1721681440062,-500.0,0.00013698,2]
[332924549,1721681440071,-647.68,0.00013698,2]
[332924550,1721681440081,-511.37839314,0.00013698,2]
[332924551,1721681440090,-500.0,0.00013698,2]
[332924552,1721681440099,-500.0,0.00013698,2]
[332924553,1721681440109,-500.0,0.00013698,2]
[332924554,1721681440118,-500.0,0.00013698,2]
[332924555,1721681440127,-500.0,0.00013698,2]
[332924556,1721681440137,-500.0,0.00013698,2]
[332924557,1721681440146,-500.0,0.00013698,2]
[332924558,1721681440155,-500.0,0.00013698,2]
[332924559,1721681440164,-500.0,0.00013698,2]
[332924560,1721681440174,-1030.13,0.00013698,2]
[332924561,1721681440187,-500.0,0.00013698,2]
[332924562,1721681440196,-500.0,0.00013698,2]
[332924563,1721681440206,-500.0,0.00013698,2]
[332924564,1721681440215,-500.0,0.00013698,2]
[332924565,1721681440224,-501.8269639,0.00013698,2]
[332924566,1721681440234,-432.11309884,0.00013698,2]
[332924567,1721681440243,-500.0,0.00013698,2]
[332924568,1721681440252,-500.0,0.00013698,2]
[332924569,1721681440263,-500.0,0.00013698,2]
[332924570,1721681440272,-552.23,0.00013698,2]
[332924571,1721681440281,-267.88663613,0.00013698,2]
[332924572,1721681440290,-500.0,0.00013698,2]
[332924573,1721681440299,-500.0,0.00013698,2]
[332924574,1721681440309,-500.0,0.00013698,2]
[332924575,1721681440318,-500.0,0.00013698,2]
[332924576,1721681440327,-500.0,0.00013698,2]
[332924577,1721681440336,-519.91213025,0.00013698,2]
[332924578,1721681440345,-500.0,0.00013698,2]
[332924579,1721681440355,-500.0,0.00013698,2]
[332924580,1721681440365,-500.0,0.00013698,2]
[332924581,1721681440374,-500.0,0.00013698,2]
[332924582,1721681440382,-500.0,0.00013698,2]
[332924583,1721681440392,-524.6,0.00013698,2]
[332924584,1721681440401,-500.0,0.00013698,2]
[332924585,1721681440410,-500.0,0.00013698,2]
[332924586,1721681440420,-819.36,0.00013698,2]
[332924587,1721681440430,-500.0,0.00013698,2]
[332924588,1721681440439,-500.0,0.00013698,2]
[332924589,1721681440449,-500.0,0.00013698,2]
[332924590,1721681440458,-500.0,0.00013698,2]
[332924591,1721681440467,-500.0,0.00013698,2]
[332924592,1721681440476,-504.66876124,0.00013698,2]
[332924593,1721681440485,-500.0,0.00013698,2]
[332924594,1721681440494,-500.0,0.00013698,2]
[332924595,1721681440504,-616.18342409,0.00013698,2]
[332924596,1721681440513,-500.0,0.00013698,2]
[332924597,1721681440522,-500.0,0.00013698,2]
[332924598,1721681440531,-500.0,0.00013698,2]
[332924599,1721681440540,-500.0,0.00013698,2]
[332924600,1721681440550,-1089.21,0.00013698,2]
[332924601,1721681440559,-500.0,0.00013698,2]
[332924602,1721681440568,-500.0,0.00013698,2]
[332924603,1721681440577,-500.0,0.00013698,2]
[332924604,1721681440586,-503.14248783,0.00013698,2]
[332924605,1721681440596,-500.0,0.00013698,2]
[332924606,1721681440605,-500.0,0.00013698,2]
[332924607,1721681440614,-500.0,0.00013698,2]
[332924608,1721681440623,-613.50607496,0.00013698,2]
[332924609,1721681440632,-500.0,0.00013698,2]
[332924610,1721681440641,-500.0,0.00013698,2]
[332924611,1721681440650,-500.0,0.00013698,2]
[332924612,1721681440659,-500.0,0.00013698,2]
[332924613,1721681440669,-501.6814079,0.00013698,2]
[332924614,1721681440679,-500.0,0.00013698,2]
[332924615,1721681440688,-500.0,0.00013698,2]
[332924616,1721681440698,-500.0,0.00013698,2]
[332924617,1721681440707,-506.13753614,0.00013698,2]
[332924618,1721681440716,-500.0,0.00013698,2]
[332924619,1721681440725,-500.0,0.00013698,2]
[332924620,1721681440734,-500.0,0.00013698,2]
[332924621,1721681440744,-500.0,0.00013698,2]
[332924622,1721681440753,-500.0,0.00013698,2]
[332924624,1721681440762,-500.0,0.00013698,2]
[332924626,1721681440772,-500.0,0.00013698,2]
[332924627,1721681440781,-500.0,0.00013698,2]
[332924629,1721681440791,-500.0,0.00013698,2]
[332924631,1721681440800,-500.0,0.00013698,2]
[332924633,1721681440809,-500.0,0.00013698,2]
[332924634,1721681440818,-500.0,0.00013698,2]
[332924635,1721681440827,-500.0,0.00013698,2]
[332924642,1721681440947,-500.0,0.00013698,2]
[332924644,1721681440956,-500.0,0.00013698,2]
[332924646,1721681440966,-500.0,0.00013698,2]
[332924648,1721681440975,-501.45,0.00013698,2]
[332924650,1721681440984,-501.45,0.00013698,2]
[332924652,1721681440993,-501.45,0.00013698,2]
[332924654,1721681441003,-501.45,0.00013698,2]
[332924656,1721681441012,-501.45,0.00013698,2]
[332924657,1721681441020,-500.0,0.00013698,2]
[332924659,1721681441030,-501.45,0.00013698,2]
[332924660,1721681441039,-501.45,0.00013698,2]
[332924662,1721681441048,-501.45,0.00013698,2]
[332924664,1721681441058,-501.45,0.00013698,2]
[332924666,1721681441068,-501.45,0.00013698,2]
[332924667,1721681441077,-500.0,0.00013698,2]
[332924668,1721681441086,-501.45,0.00013698,2]
[332924669,1721681441095,-501.45,0.00013698,2]
[332924670,1721681441104,-501.45,0.00013698,2]
[332924671,1721681441112,-501.45,0.00013698,2]
[332924672,1721681441121,-501.45,0.00013698,2]
[332924673,1721681441130,-501.45,0.00013698,2]
[332924674,1721681441139,-501.45,0.00013698,2]
[332924675,1721681441148,-501.45,0.00013698,2]
[332924676,1721681441157,-501.45,0.00013698,2]
[332924677,1721681441168,-501.45,0.00013698,2]
[332924678,1721681441177,-501.45,0.00013698,2]
[332924679,1721681441189,-501.45,0.00013698,2]
[332924680,1721681441199,-501.45,0.00013698,2]
[332924681,1721681441208,-501.48514018,0.00013698,2]
[332924682,1721681441217,-500.0,0.00013698,2]
[332924683,1721681441227,-500.0,0.00013698,2]
[332924684,1721681441236,-500.0,0.00013698,2]
[332924685,1721681441244,-528.67669487,0.00013698,2]
[332924686,1721681441254,-500.0,0.00013698,2]
[332924687,1721681441264,-500.0,0.00013698,2]
[332924688,1721681441273,-500.0,0.00013698,2]
[332924689,1721681441282,-500.0,0.00013698,2]
[332924690,1721681441291,-555.63132399,0.00013698,2]
[332924691,1721681441300,-500.0,0.00013698,2]
[332924692,1721681441310,-500.0,0.00013698,2]
[332924693,1721681441319,-500.42939411,0.00013698,2]
[332924694,1721681441328,-500.0,0.00013698,2]
[332924695,1721681441337,-500.0,0.00013698,2]
[332924696,1721681441346,-500.0,0.00013698,2]
[332924697,1721681441355,-500.0,0.00013698,2]
[332924698,1721681441365,-500.0,0.00013698,2]
[332924699,1721681441374,-500.0,0.00013698,2]
[332924700,1721681441383,-500.0,0.00013698,2]
[332924701,1721681441392,-4308.99,0.00013698,2]
[332924702,1721681441401,-502.18907915,0.00013698,2]
[332924703,1721681441410,-4308.99,0.00013698,2]
[332924704,1721681441420,-4308.99,0.00013698,2]
[332924705,1721681441430,-4308.99,0.00013698,2]
[332924706,1721681441439,-4308.99,0.00013698,2]
[332924707,1721681441448,-4308.99,0.00013698,2]
[332924708,1721681441457,-4308.99,0.00013698,2]
[332924709,1721681441466,-4308.99,0.00013698,2]
[332924710,1721681441476,-4308.99,0.00013698,2]
[332924711,1721681441485,-4308.99,0.00013698,2]
[332924712,1721681441494,-4308.99,0.00013698,2]
[332924713,1721681441503,-500.0,0.00013698,2]
[332924714,1721681441512,-503.03131042,0.00013698,2]
[332924715,1721681441522,-500.0,0.00013698,2]
[332924716,1721681441531,-4308.99,0.00013698,2]
[332924717,1721681441541,-4308.99,0.00013698,2]
[332924718,1721681441550,-500.0,0.00013698,2]
[332924719,1721681441559,-500.0,0.00013698,2]
[332924720,1721681441569,-4308.99,0.00013698,2]
[332924721,1721681441578,-4308.99,0.00013698,2]
[332924722,1721681441588,-4308.99,0.00013698,2]
[332924723,1721681441597,-4308.99,0.00013698,2]
[332924724,1721681441607,-4308.99,0.00013698,2]
[332924725,1721681441616,-4308.99,0.00013698,2]
[332924726,1721681441626,-4308.99,0.00013698,2]
[332924727,1721681441636,-500.0,0.00013698,2]
[332924728,1721681441645,-4308.99,0.00013698,2]
[332924729,1721681441655,-4308.99,0.00013698,2]
[332924730,1721681441664,-4308.99,0.00013698,2]
[332924731,1721681441674,-4309.04713288,0.00013698,2]
[332924732,1721681441683,-500.0,0.00013698,2]
[332924733,1721681441692,-500.0,0.00013698,2]
[332924734,1721681441701,-501.56838315,0.00013698,2]
[332924735,1721681441710,-508.24530935,0.00013698,2]
[332924736,1721681441719,-500.0,0.00013698,2]
[332924737,1721681441728,-500.0,0.00013698,2]
[332924738,1721681441737,-500.0,0.00013698,2]
[332924739,1721681441746,-500.0,0.00013698,2]
[332924740,1721681441755,-500.0,0.00013698,2]
[332924741,1721681441765,-502.3770326,0.00013698,2]
[332924742,1721681441774,-500.0,0.00013698,2]
[332924743,1721681441783,-500.0,0.00013698,2]
[332924744,1721681441792,-500.64682098,0.00013698,2]
[332924745,1721681441801,-500.0,0.00013698,2]
[332924746,1721681441810,-500.0,0.00013698,2]
[332924747,1721681441821,-500.0,0.00013698,2]
[332924748,1721681441830,-500.0,0.00013698,2]
[332924749,1721681441839,-500.0,0.00013698,2]
[332924750,1721681441849,-500.0,0.00013698,2]
[332924751,1721681441858,-500.0,0.00013698,2]
[332924752,1721681441867,-513.10565774,0.00013698,2]
[332924753,1721681441877,-500.0,0.00013698,2]
[332924754,1721681441886,-500.0,0.00013698,2]
[332924755,1721681441895,-500.0,0.00013698,2]
[332924756,1721681441905,-500.0,0.00013698,2]
[332924757,1721681441914,-500.0,0.00013698,2]
[332924758,1721681441927,-500.0,0.00013698,2]
[332924759,1721681441936,-619.08566216,0.00013698,2]
[332924760,1721681441948,-501.15052007,0.00013698,2]
[332924761,1721681441958,-500.0,0.00013698,2]
[332924762,1721681441967,-500.0,0.00013698,2]
[332924763,1721681441976,-500.0,0.00013698,2]
[332924764,1721681441985,-500.0,0.00013698,2]
[332924765,1721681441994,-500.0,0.00013698,2]
[332924766,1721681442003,-500.0,0.00013698,2]
[332924767,1721681442013,-476.28410891,0.00013698,2]
[332924768,1721681442022,-500.0,0.00013698,2]
[332924769,1721681442031,-500.0,0.00013698,2]
[332924770,1721681442040,-500.46070068,0.00013698,2]
[332924771,1721681442049,-500.0,0.00013698,2]
[332924772,1721681442059,-500.0,0.00013698,2]
[332924773,1721681442068,-500.0,0.00013698,2]
[332924774,1721681442077,-500.0,0.00013698,2]
[332924775,1721681442086,-500.0,0.00013698,2]
[332924776,1721681442095,-500.0,0.00013698,2]
[332924777,1721681442105,-500.0,0.00013698,2]
[332924778,1721681442114,-500.0,0.00013698,2]
[332924779,1721681442123,-500.0,0.00013698,2]
[332924780,1721681442133,-500.0,0.00013698,2]
[332924781,1721681442142,-512.58491509,0.00013698,2]
[332924782,1721681442151,-500.0,0.00013698,2]
[332924783,1721681442160,-500.0,0.00013698,2]
[332924784,1721681442170,-500.0,0.00013698,2]
[332924785,1721681442182,-500.0,0.00013698,2]
[332924786,1721681442192,-500.0,0.00013698,2]